[Event "Sardinia World Festival-A 2024"]
[Site "Orosei"]
[Date "2024.04.30"]
[Round "4.43"]
[White "Varsani, Hirbod"]
[Black "Saine, Zachary"]
[Result "0-1"]
[ECO "C24"]
[WhiteElo "1992"]
[BlackElo "2032"]
[Annotator "NA RC"]
[PlyCount "106"]
[EventDate "2024.04.26"]
[EventType "swiss"]
[EventCountry "ITA"]
[SourceTitle "playchess.com"]
[Source "ChessBase"]
[SourceQuality "1"]
[TimeControl "40/5400+30:1800+30"]

1. e4 {[%emt 0:00:02]} e5 {[%emt 0:03:17]} 2. Bc4 {[%emt 0:00:11]} Nf6 {[%emt 0:00:37]} 3. d3 {[%emt 0:00:11]} c6 {[%emt 0:00:45]} 4. Nf3 {[%emt 0:00:14]} d5 {[%emt 0:01:48]} 5. Bb3 {[%emt 0:00:08]} Bd6 {[%emt 0:00:32]} 6. Qe2 {[%emt 0:09:25]} O-O {[%emt 0:04:26]} 7. Nbd2 {[%emt 0:04:20]} Na6 {[%emt 0:03:25]} 8. c3 {[%emt 0:01:08]} Nc5 {[%emt 0:02:49]} 9. Bc2 {[%emt 0:00:09]} dxe4 {[%emt 0:00:39]} 10. dxe4 {[%emt 0:00:36]} b6 {[%emt 0:04:08]} 11. b4 {[%emt 0:11:07]} Ba6 {[%emt 0:08:06]} 12. c4 {[%emt 0:02:23]} Ne6 {[%emt 0:00:43]} 13. b5 {[%emt 0:08:26]} Nf4 {[%emt 0:02:13]} 14. Qf1 {[%emt 0:00:26]} cxb5 {[%emt 0:00:05]} 15. g3 {[%emt 0:02:00]} Ne6 {[%emt 0:06:22]} 16. cxb5 {[%emt 0:01:16]} Bb7 {[%emt 0:01:24]} 17. Bb2 {[%emt 0:10:17]} Rc8 {[%emt 0:20:14]} 18. Bb1 {[%emt 0:08:29]} Bb4 {[%emt 0:16:20]} 19. Qe2 {[%emt 0:03:48]} Bc3 {[%emt 0:05:48]} 20. Bxc3 {[%emt 0:01:25]} Rxc3 {[%emt 0:00:05]} 21. O-O {[%emt 0:00:32]} Nd4 {[%emt 0:00:20]} 22. Nxd4 {[%emt 0:06:43]} Qxd4 {[%emt 0:00:05]} 23. a4 {[%emt 0:01:20]} Rxg3+ {[%emt 0:04:09]} 24. hxg3 {[%emt 0:00:13]} Qxa1 {[%emt 0:00:05]} 25. Nc4 {[%emt 0:01:35]} Qxa4 {[%emt 0:02:48]} 26. Nd6 {[%emt 0:01:38]} Bc8 {[%emt 0:01:12]} 27. Ba2 {[%emt 0:01:43]} Bg4 {[%emt 0:03:05]} 28. Qb2 {[%emt 0:12:19]} Qd4 {[%emt 0:00:29]} 29. Qxd4 {[%emt 0:02:35]} exd4 {[%emt 0:00:01]} 30. f3 {[%emt 0:03:14]} Be6 {[%emt 0:00:51]} 31. Bb1 {[%emt 0:02:14]} Rd8 {[%emt 0:00:29]} 32. e5 {[%emt 0:00:23]} Ne8 {[%emt 0:01:05]} 33. Nxe8 {[%emt 0:01:27]} Rxe8 {[%emt 0:00:02]} 34. Rd1 {[%emt 0:00:45]} Rd8 {[%emt 0:00:27]} 35. Bd3 {[%emt 0:00:14]} Rd5 {[%emt 0:01:50]} 36. f4 {[%emt 0:00:28]} g6 {[%emt 0:01:01]} 37. Ra1 {[%emt 0:00:35]} Rd7 {[%emt 0:00:58]} 38. Rc1 {[%emt 0:01:01]} Kg7 {[%emt 0:01:51]} 39. Rc6 {[%emt 0:00:59]} Bd5 {[%emt 0:00:39]} 40. Rc8 {[%emt 0:01:04]} f6 {[%emt 0:00:57]} 41. exf6+ {[%emt 0:32:33]} Kxf6 {[%emt 0:30:08]} 42. Rf8+ {[%emt 0:00:28]} Rf7 {[%emt 0:01:11]} 43. Rh8 {[%emt 0:01:10]} Ke6 {[%emt 0:02:17]} 44. Kh2 {[%emt 0:00:42]} Kd6 {[%emt 0:00:47]} 45. Rd8+ {[%emt 0:00:00]} Rd7 {[%emt 0:00:00]} 46. Rf8 {[%emt 0:00:00]} Be6 {[%emt 0:00:00]} 47. Rc8 {[%emt 0:00:00]} Bf5 {[%emt 0:00:00]} 48. Be2 {[%emt 0:00:00]} Re7 {[%emt 0:00:00]} 49. Rc6+ {[%emt 0:00:00]} Kd5 {[%emt 0:00:00]} 50. Bf3+ {[%emt 0:00:00]} Be4 {[%emt 0:00:00]} 51. Bd1 {[%emt 0:00:00]} d3 {[%emt 0:00:00]} 52. Kg1 {[%emt 0:00:00]} Kd4 {[%emt 0:00:00]} 53. Kf2 {[%emt 0:00:00]} Bxc6 {[%emt 0:00:00]} 0-1

[Event "Sardinia World Festival-A 2024"]
[Site "Orosei"]
[Date "2024.04.30"]
[Round "4.44"]
[White "Becker, Martin Alexander"]
[Black "Wang, Shanshan"]
[Result "1-0"]
[ECO "D04"]
[WhiteElo "2373"]
[BlackElo "1966"]
[Annotator "TA"]
[PlyCount "130"]
[EventDate "2024.04.26"]
[EventType "swiss"]
[EventCountry "ITA"]
[SourceTitle "playchess.com"]
[Source "ChessBase"]
[SourceQuality "1"]
[TimeControl "40/5400+30:1800+30"]

{[%evp 9,130,3,23,34,34,35,29,16,25,16,48,44,43,0,62,-161,0,-75,-75,-77,5,16,27,24,15,-20,-20,-64,-58,-106,-65,-130,-111,-129,-142,-130,-150,-141,-86,-80,-64,-64,-67,-63,-60,-60,-48,-43,-45,-75,-66,-93,-80,-85,-81,-239,-236,-211,-229,-227,-176,-341,-186,-162,12,0,0,0,8,8,169,179,204,0,-8,-3,0,0,0,0,113,26,193,172,247,263,462,447,311,303,551,537,1041,1209,795,706,1408,1408,1408,1408,1401,0,241,0,1408,1408,1401,1393,1272,1257,2748,1939,29969,29959,29981,29982,29981,29982,29985,29986,29986,29987,29986]} 1. Nf3 {[%emt 0:06:33]} d5 {[%emt 0:00:15]} 2. d4 {[%emt 0:00:32]} Nf6 {[%emt 0:00:12]} 3. e3 {[%emt 0:00:24]} c6 {[%emt 0:04:08]} 4. Bd3 {[%emt 0:02:19]} Bg4 {[%emt 0:06:04]} 5. b3 {[%emt 0:03:15]} Qa5+ {[%emt 0:01:46]} 6. Qd2 {[%emt 0:15:16]} Qc7 {[%emt 0:02:24]} 7. Ne5 {[%emt 0:01:59]} Bh5 {[%emt 0:00:46]} 8. c4 {[%emt 0:14:17] White has an edge.} e6 {[%emt 0:06:06]} 9. O-O {[%emt 0:07:31]} Ne4 {[%emt 0:15:09]} 10. Qc2 {[%emt 0:10:45]} f6 {[%emt 0:05:48]} 11. f3 {[%emt 0:01:26]} Ng5 {[%emt 0:08:59]} (11... Nc5 $11) 12. e4 $2 {[%emt 0:08:54]} (12. Ng4 $14 {keeps the upper hand.}) 12... h6 $2 {[%emt 0:04:55]} (12... dxe4 $19 {Hoping for ...Qd8.} 13. fxe4 Qd8 (13... fxe5 14. Bxg5 exd4 15. Nd2 $15)) 13. Ng4 {[%emt 0:00:40]} (13. g4 $11 {keeps the balance.}) 13... dxe4 $17 {[%emt 0:05:47]} 14. Bxe4 {[%emt 0:03:30]} Na6 {[%emt 0:08:50]} (14... f5 $17 {[%cal Of5e4]} 15. Bd3 Na6 (15... fxg4 16. fxg4 Bxg4 17. h3 $15)) 15. Bg6+ $11 {[%emt 0:00:20]} Bxg6 {[%emt 0:00:15]} 16. Qxg6+ {[%emt 0:20:49]} Qf7 {[%emt 0:00:45]} 17. Qxf7+ {[%emt 0:00:00]} Nxf7 {[%emt 0:00:16]} 18. a3 {[%emt 0:00:00] Dodges Nb4} O-O-O {[%emt 0:01:06]} 19. Be3 {[%emt 0:00:00]} (19. Nf2 $15 {is more appropriate.}) 19... Nd6 {[%emt 0:04:14]} 20. Bf2 {[%emt 0:00:00]} (20. d5 $1 $15) 20... Nf5 $17 {[%emt 0:01:13]} 21. d5 {[%emt 0:00:00]} exd5 {[%emt 0:01:07]} (21... cxd5 22. cxd5 Rxd5 (22... exd5 23. Bxa7 Bd6 24. Ne3 $15) 23. Bxa7 $15) 22. cxd5 {[%emt 0:00:00]} Rxd5 {[%emt 0:01:27]} (22... cxd5 23. Bxa7 Nc7 24. Ne3 Nxe3 25. Bxe3 $17) 23. Bxa7 {[%emt 0:00:00]} Bc5+ {[%emt 0:01:14]} ({Black should play} 23... h5 24. Nf2 b6) 24. Bxc5 {[%emt 0:00:00]} Nxc5 {[%emt 0:00:04]} 25. b4 $1 {[%emt 0:00:00]} Na4 {[%emt 0:00:49]} 26. Ra2 {[%emt 0:00:00]} Rhd8 {[%emt 0:01:17]} 27. Nf2 {[%emt 0:00:00]} Ne3 {[%emt 0:02:25]} 28. Re1 {[%emt 0:00:00]} Nc4 {[%emt 0:02:03]} 29. Rc2 {[%emt 0:00:00]} b5 {[%emt 0:04:06]} 30. g4 {[%emt 0:00:00]} Kc7 {[%emt 0:00:51]} 31. Re7+ {[%emt 0:00:00]} R8d7 {[%emt 0:00:15]} 32. Re8 {[%emt 0:00:51] [#]} (32. Rxd7+ $17 {keeps fighting.} Rxd7 (32... Kxd7 33. Rc1 $17) 33. h4) 32... Rd1+ $1 $19 {[%emt 0:01:19][%mdl 512]} 33. Nxd1 {[%emt 0:00:08]} Rxd1+ {[%emt 0:00:01]} 34. Kf2 {[%emt 0:01:06]} Rxb1 {[%emt 0:00:05]} 35. Re7+ $2 {[%emt 0:03:04]} (35. Rce2) 35... Kd6 {[%emt 0:00:22]} (35... Kb6 $142 36. Rxg7 Nxa3) 36. Rxg7 {[%emt 0:00:02]} Rb2 $2 {[%emt 0:00:13]} (36... Nxa3 $2 37. Rd2+ Ke6 (37... Ke5 $2 38. Re7+ Kf4 39. Rd4+ Kg5 40. Rg7+ Kh4 41. g5+ Kh3 42. gxh6 $18) 38. Rdd7 $18) (36... Rh1 $19 37. Kg3 Nab6 (37... Nxa3 $2 38. Rd2+ Ke6 39. Rdd7 $18)) 37. Rxb2 $11 {[%emt 0:00:21]} Naxb2 {[%emt 0:00:11]} 38. Rg6 {[%emt 0:00:37][%csl LRf6,LRh6]} Nd3+ {[%emt 0:00:33]} 39. Kg3 {[%emt 0:00:17]} Ke5 {[%emt 0:01:30]} (39... Ke7 $1 $11) 40. Rxh6 $18 {[%emt 0:00:14]} Nxa3 {[%emt 0:00:18] [#]} 41. g5 $2 {[%emt 0:32:42]} fxg5 $11 {[%emt 0:30:53]} (41... Nxb4 $2 42. f4+ (42. Rxf6 Nd5 $16) (42. gxf6 Ke6 $11) 42... Ke6 43. Rxf6+ (43. gxf6 Nb1 $11) 43... Ke7 44. f5 $18) 42. Rxc6 {[%emt 0:02:49]} Nc4 {[%emt 0:00:48]} 43. Kg4 {[%emt 0:00:00]} Kd5 {[%emt 0:00:00]} 44. Rc8 {[%emt 0:00:00]} Nb6 {[%emt 0:00:00]} (44... Nxb4 $11 {remains equal.} 45. Rg8 Kc6 46. Kxg5 Nd3) 45. Rb8 {[%emt 0:00:00]} (45. Rd8+ $16 Kc4 46. Kxg5) 45... Kc6 $2 {[%emt 0:00:00]} (45... Ne5+ $1 $11 {and Black is okay.} 46. Kf5 (46. Kxg5 Nbd7 $11) 46... Nbc4) 46. Kxg5 $18 {[%emt 0:00:00]} Nxb4 {[%emt 0:00:00]} (46... Ne5 $142) 47. h4 {[%emt 0:00:00]} N4d5 {[%emt 0:00:00]} (47... Na6 {might work better.} 48. Re8 Nc7) 48. h5 {[%emt 0:00:00]} Nd7 {[%emt 0:00:00]} 49. Re8 {[%emt 0:00:00]} Nc7 $2 {[%emt 0:00:00]} (49... N7f6 50. Re6+ Kd7 51. Rxf6 Nxf6 52. Kxf6 b4) 50. Re1 {[%emt 0:00:00] h6 is the strong threat.} Kd6 {[%emt 0:00:00]} 51. h6 {[%emt 0:00:00] h7 would now be deadly.} Ne6+ {[%emt 0:00:00]} 52. Kg6 {[%emt 0:00:00][%cal Of3f4] Black must now prevent f4!} Ne5+ {[%emt 0:00:35]} 53. Kf6 {[%emt 0:00:00]} Nd7+ {[%emt 0:00:12]} 54. Kf7 {[%emt 0:00:00]} (54. Kg6 b4 55. Re3 (55. h7 Nef8+ 56. Kg7 Nxh7 $11) 55... Ne5+ 56. Kf5 Nd4+ 57. Kf6 Nd7+ 58. Kf7 Ne5+ 59. Rxe5 Kxe5) 54... Ne5+ {[%emt 0:05:42]} 55. Kf6 $2 {[%emt 0:00:00]} (55. Rxe5 Kxe5 56. f4+ (56. h7 {leads to mate.} Ng5+ 57. Kg8 Nxh7 58. Kxh7 b4 59. Kg8 b3 60. Kf8 Ke6 61. f4 b2 62. f5+ Kf6 63. Ke8 b1=Q 64. Kd7 Qb6 65. Kc8 Ke7 66. f6+ Kd6 67. f7 Qc7#) 56... Nxf4 57. h7) 55... Nd7+ {[%emt 0:00:16]} 56. Kg6 $2 {[%emt 0:00:00]} (56. Kf5 Nef8 57. Rh1) 56... Ne5+ {[%emt 0:00:51]} 57. Kf5 {[%emt 0:00:12]} Nd4+ {[%emt 0:00:26]} 58. Kf6 {[%emt 0:00:29]} Nd7+ {[%emt 0:01:05]} 59. Kg6 {[%emt 0:00:51]} Nf8+ {[%emt 0:05:07]} 60. Kf7 {[%emt 0:02:25]} Nfe6 {[%emt 0:01:45]} 61. Rd1 {[%emt 0:02:25] White mates.} (61. h7 Ng5+ 62. Kg8 Nxh7 $11) 61... b4 {[%emt 0:02:32] [#]} 62. f4 $1 {[%emt 0:02:13][%mdl 512]} Kc5 {[%emt 0:01:19]} 63. h7 {[%emt 0:00:59]} Nxf4 {[%emt 0:00:33]} 64. h8=Q {[%emt 0:00:18]} ({Weaker is} 64. h8=B Nfe6 $11) 64... Nfe2 {[%emt 0:00:20]} 65. Qe5+ {[%emt 0:00:30]} Kc4 {[%emt 0:00:12] Never resign too early!   Weighted Error Value: White=0.50/Black=0.62.  Loses game:     	White=1     	Black=2      Missed win:     	White=1     	Black=2      Mistake:       	White=6     	Black=8      Inaccurate:     	White=5     	Black=3      OK:         	White=12    	Black=12     Best:        	White=10    	Black=8      Strong:       	White=1     	---        Brilliant:      	---       	Black=1} 1-0

[Event "Sardinia World Festival-A 2024"]
[Site "Orosei"]
[Date "2024.04.30"]
[Round "4.45"]
[White "Natoli, Alessia"]
[Black "Maida, Federico"]
[Result "1-0"]
[ECO "C01"]
[WhiteElo "1917"]
[BlackElo "1961"]
[Annotator "TA"]
[PlyCount "211"]
[EventDate "2024.04.26"]
[EventType "swiss"]
[EventCountry "ITA"]
[SourceTitle "playchess.com"]
[Source "ChessBase"]
[SourceQuality "1"]
[TimeControl "40/5400+30:1800+30"]

{[%evp 122,211,0,0,0,0,0,0,0,0,0,0,0,0,0,0,0,0,0,0,0,0,0,0,0,0,0,0,0,0,0,0,0,0,0,0,0,0,0,0,0,0,0,0,0,0,0,0,0,0,0,0,0,0,0,0,0,0,0,0,0,0,0,0,0,0,0,0,0,0,0,0,0,0,0,0,0,0,0,0,2135,0,0,0,0,0,9936,223,230,223,29989,29990]} 1. e4 {[%emt 0:02:59]} e6 {[%emt 0:00:29]} 2. d4 {[%emt 0:00:30]} d5 {[%emt 0:00:09]} 3. Bd3 {[%emt 0:00:15]} dxe4 {[%emt 0:00:08]} 4. Bxe4 {[%emt 0:00:04]} Nf6 {[%emt 0:00:09]} 5. Bf3 {[%emt 0:00:19]} c5 {[%emt 0:00:12]} 6. Ne2 {[%emt 0:00:59]} Nc6 {[%emt 0:00:10] C01: French: Exchange Variation.} 7. Be3 {[%emt 0:00:50]} Qb6 {[%emt 0:00:12]} 8. b3 {[%emt 0:07:59]} cxd4 {[%emt 0:08:44]} 9. Nxd4 {[%emt 0:02:32]} Bc5 {[%emt 0:00:59]} 10. Nxc6 {[%emt 0:04:09]} Bxe3 {[%emt 0:00:14]} 11. Qe2 $146 {[%emt 0:09:59]} ({Predecessor:} 11. fxe3 bxc6 12. Qd4 c5 13. Qe5 Bb7 14. O-O Bxf3 15. Rxf3 O-O 16. c4 Rad8 17. Nc3 {0-1 Lochmann,V (1924)-Schwarzat,J (1914) Harburg-chE 5th 2007 (1)}) 11... Bc1 {[%emt 0:08:50]} 12. Nc3 {[%emt 0:05:57]} Bf4 {[%emt 0:20:35]} 13. Qc4 {[%emt 0:06:46]} Bd7 {[%emt 0:06:53]} 14. Qxf4 {[%emt 0:02:27]} Bxc6 {[%emt 0:00:07]} 15. O-O {[%emt 0:01:44]} Rc8 {[%emt 0:05:46]} 16. Ne4 {[%emt 0:03:37]} Nxe4 {[%emt 0:04:53]} 17. Bxe4 {[%emt 0:00:09]} Bxe4 {[%emt 0:00:04]} 18. Qxe4 {[%emt 0:00:10]} Qc6 {[%emt 0:00:05]} 19. Qd4 {[%emt 0:05:44]} O-O {[%emt 0:00:14]} 20. c4 {[%emt 0:00:57]} a6 {[%emt 0:00:57]} 21. Rfd1 {[%emt 0:02:23]} Qc7 {[%emt 0:09:27]} 22. Qd6 {[%emt 0:01:48]} Qxd6 {[%emt 0:03:39]} 23. Rxd6 {[%emt 0:00:22]} Rfd8 {[%emt 0:00:04]} 24. Rad1 {[%emt 0:01:34]} Rxd6 {[%emt 0:00:04]} 25. Rxd6 {[%emt 0:00:10]} Kf8 {[%emt 0:00:02]} 26. f4 {[%emt 0:08:00]} Ke7 {[%emt 0:00:56]} 27. Rb6 {[%emt 0:01:33]} Rb8 {[%emt 0:01:43]} 28. c5 {[%emt 0:02:14]} Kd7 {[%emt 0:00:05]} 29. c6+ {[%emt 0:03:45]} Kc7 {[%emt 0:00:07]} 30. Rxb7+ {[%emt 0:00:06]} Rxb7 {[%emt 0:00:03]} 31. cxb7 {[%emt 0:00:12]} Kxb7 {[%emt 0:00:04]} 32. Kf2 {[%emt 0:00:09]} Kc6 {[%emt 0:00:06]} 33. Ke3 {[%emt 0:00:31]} Kd5 {[%emt 0:06:58]} 34. Kd3 {[%emt 0:04:15]} a5 {[%emt 0:03:53]} 35. a3 {[%emt 0:00:36]} f6 {[%emt 0:04:48]} 36. g3 {[%emt 0:02:36]} h6 {[%emt 0:06:33]} 37. b4 {[%emt 0:03:11]} axb4 {[%emt 0:00:39]} 38. axb4 {[%emt 0:00:02]} g5 {[%emt 0:00:14]} 39. Kc3 {[%emt 0:00:56]} g4 {[%emt 0:08:28]} 40. Kd3 {[%emt 0:01:21]} h5 {[%emt 0:00:11]} 41. Kc3 {[%emt 0:31:18]} Ke4 {[%emt 0:09:04]} 42. Kc4 {[%emt 0:00:00]} Kf3 {[%emt 0:00:40]} 43. b5 {[%emt 0:00:00]} e5 {[%emt 0:02:19]} 44. fxe5 {[%emt 0:00:00]} fxe5 {[%emt 0:00:06]} 45. b6 {[%emt 0:00:00]} e4 {[%emt 0:00:05]} 46. b7 {[%emt 0:00:00]} e3 {[%emt 0:00:02]} 47. b8=Q {[%emt 0:00:00]} e2 {[%emt 0:00:05]} 48. Qe5 {[%emt 0:00:00]} Kf2 {[%emt 0:00:08]} 49. Qxh5 {[%emt 0:00:00]} e1=Q {[%emt 0:00:18]} 50. Qxg4 {[%emt 0:00:00]} Qc1+ {[%emt 0:00:52]} 51. Kd5 {[%emt 0:00:00]} Qh1+ {[%emt 0:00:16]} 52. Qe4 {[%emt 0:00:00]} Qxh2 {[%emt 0:00:43]} 53. g4 {[%emt 0:00:00]} Qh4 {[%emt 0:01:24]} 54. Qf5+ {[%emt 0:00:00]} Kg3 {[%emt 0:00:32]} 55. g5 {[%emt 0:00:00]} Qh5 {[%emt 0:00:13]} 56. Ke6 {[%emt 0:00:00]} Qe8+ {[%emt 0:00:12]} 57. Kf6 {[%emt 0:00:00]} Qf8+ {[%emt 0:04:05]} 58. Kg6 {[%emt 0:01:09]} Qg8+ {[%emt 0:00:09]} 59. Kh6 {[%emt 0:01:18]} Qh8+ {[%emt 0:00:42]} 60. Qh7 {[%emt 0:00:14]} Qe5 {[%emt 0:00:42]} 61. Qg7 {[%emt 0:02:13]} Qe6+ {[%emt 0:00:30]} 62. Qf6 {[%emt 0:00:34]} Qh3+ {[%emt 0:02:10]} 63. Kg6 {[%emt 0:00:07]} Qd7 {[%emt 0:01:37]} 64. Qe5+ {[%emt 0:03:13]} Kg4 {[%emt 0:01:42]} 65. Kh6 {[%emt 0:01:21]} Qc6+ {[%emt 0:00:30]} 66. g6 {[%emt 0:00:41]} Qh1+ {[%emt 0:00:07]} 67. Kg7 {[%emt 0:00:08]} Qb7+ {[%emt 0:00:06]} 68. Kg8 {[%emt 0:00:55]} (68. Kf6 $5 Qf3+ $8 69. Kg7 $11) 68... Qa8+ {[%emt 0:00:16]} 69. Kf7 {[%emt 0:00:41]} Qf3+ {[%emt 0:00:42]} 70. Qf6 {[%emt 0:01:22]} Qb7+ {[%emt 0:00:09]} 71. Qe7 {[%emt 0:00:27]} Qf3+ {[%emt 0:00:09]} 72. Kg7 {[%emt 0:02:27]} (72. Qf6 $5 Qb7+ $8 73. Qe7 Qf3+ 74. Kg8 Qa8+ 75. Kg7 $11) 72... Qc6 {[%emt 0:02:59]} 73. Kh7 {[%emt 0:02:16]} Qh1+ {[%emt 0:00:07]} 74. Kg8 {[%emt 0:00:32]} Qa8+ {[%emt 0:00:07]} 75. Qf8 {[%emt 0:04:44]} (75. Kf7 $5 Qf3+ $8 76. Kg7 $11) 75... Qd5+ {[%emt 0:00:13]} 76. Qf7 {[%emt 0:02:01]} Qa8+ {[%emt 0:00:23]} 77. Qf8 {[%emt 0:01:25]} Qd5+ {[%emt 0:00:43]} 78. Kh7 {[%emt 0:01:26]} Qe4 {[%emt 0:11:40]} 79. Qh6 {[%emt 0:01:40]} Qf5 {[%emt 0:00:55]} 80. Qh1 {[%emt 0:01:38]} Kg5 {[%emt 0:01:28]} 81. Qg1+ {[%emt 0:00:37]} Kf6 {[%emt 0:01:42]} 82. Qd4+ {[%emt 0:01:01]} Kg5 {[%emt 0:00:09]} 83. Qd8+ {[%emt 0:00:25]} Kh5 {[%emt 0:00:38]} 84. Qe8 {[%emt 0:00:23]} Kg5 {[%emt 0:00:26]} 85. Qe7+ {[%emt 0:00:30]} Kh5 {[%emt 0:00:48]} 86. Qf7 {[%emt 0:00:10]} Qe4 {[%emt 0:00:30]} 87. Qf6 {[%emt 0:00:52]} Kg4 {[%emt 0:01:19]} 88. Qf1 {[%emt 0:01:05]} Kg5 {[%emt 0:01:07]} 89. Qg1+ {[%emt 0:00:31]} Kf6 {[%emt 0:00:01]} 90. Qf2+ {[%emt 0:00:38]} Kg5 $1 {[%emt 0:00:01]} 91. Qg3+ {[%emt 0:00:47]} Kh5 {[%emt 0:00:26]} 92. Qg1 {[%emt 0:00:37]} ({Don't do} 92. Qh3+ $6 Kg5 $16) 92... Qf5 {[%emt 0:01:04]} 93. Qh2+ {[%emt 0:00:52]} Kg5 {[%emt 0:00:10]} 94. Qh6+ {[%emt 0:00:34]} Kg4 {[%emt 0:00:05]} 95. Qh2 {[%emt 0:00:19]} Kg5 {[%emt 0:00:10]} 96. Qg3+ {[%emt 0:00:22]} Kh5 {[%emt 0:01:04]} 97. Qg2 {[%emt 0:00:26]} Qd3 {[%emt 0:00:51]} 98. Qh2+ {[%emt 0:00:15]} Kg5 {[%emt 0:00:06]} 99. Qe5+ {[%emt 0:00:03]} Kh4 {[%emt 0:00:08]} 100. Kg7 {[%emt 0:01:07]} Qd7+ $2 {[%emt 0:00:23][%mdl 8192]} (100... Kg4 $11) 101. Kh8 $2 {[%emt 0:00:24]} (101. Kf8 $18 {White threatens Qe7+ and mate.} Qc8+ 102. Kf7 Qc4+ 103. Ke7 Qb4+ 104. Ke8 Qa4+ 105. Kf8) 101... Qd8+ $1 $11 {[%emt 0:00:20]} 102. Kh7 {[%emt 0:00:10]} (102. Kg7 $5 Kg4 $8 103. Qe4+ Kg5 104. Qe3+ Kh5 105. Kh7 Qc7+ 106. g7 Qc2+ 107. Kh8 $11) 102... Qd3 {[%emt 0:00:06]} 103. Kg7 $2 {[%emt 0:01:01][%mdl 8192]} (103. Qf4+ $11 Kh5 104. Qh6+ Kg4 105. Qh2) 103... Qd7+ $18 {[%emt 0:00:06]} 104. Kf8 {[%emt 0:00:19]} Qc8+ {[%emt 0:03:03]} 105. Kf7 {[%emt 0:00:20]} Kg4 $2 {[%emt 0:00:12]} (105... Qc4+ $18 106. Ke7 Qb4+ 107. Ke8 Qa4+ 108. Kf8 Kg4) 106. Qe6+ {[%emt 0:00:06]} 1-0

[Event "Sardinia World Festival-A 2024"]
[Site "Orosei"]
[Date "2024.04.30"]
[Round "4.46"]
[White "Melis, Giovanni"]
[Black "Joel Paul Ganta"]
[Result "0-1"]
[ECO "E93"]
[WhiteElo "1804"]
[BlackElo "1969"]
[Annotator "NA RC"]
[PlyCount "66"]
[EventDate "2024.04.26"]
[EventType "swiss"]
[EventCountry "ITA"]
[SourceTitle "playchess.com"]
[Source "ChessBase"]
[SourceQuality "1"]
[TimeControl "40/5400+30:1800+30"]

1. e4 {[%emt 0:15:29]} g6 {[%emt 0:00:17]} 2. d4 {[%emt 0:00:12]} d6 {[%emt 0:00:05]} 3. c4 {[%emt 0:00:22]} Bg7 {[%emt 0:00:16]} 4. Nf3 {[%emt 0:00:35]} Nf6 {[%emt 0:00:36]} 5. Nc3 {[%emt 0:00:16]} O-O {[%emt 0:00:04]} 6. Be2 {[%emt 0:00:32]} e5 {[%emt 0:00:06]} 7. d5 {[%emt 0:00:43]} Nbd7 {[%emt 0:01:31]} 8. b4 {[%emt 0:00:43]} a5 {[%emt 0:00:19]} 9. b5 {[%emt 0:02:00]} Nc5 {[%emt 0:02:34]} 10. Qc2 {[%emt 0:00:07]} h6 {[%emt 0:11:50]} 11. Nd2 {[%emt 0:01:57]} Nfd7 {[%emt 0:08:23]} 12. O-O {[%emt 0:01:01]} f5 {[%emt 0:01:42]} 13. f3 {[%emt 0:01:49]} f4 {[%emt 0:01:36]} 14. Nb3 {[%emt 0:02:54]} b6 {[%emt 0:01:12]} 15. Ba3 {[%emt 0:01:22]} Nb7 {[%emt 0:00:03]} 16. Nd1 {[%emt 0:05:44]} Nf6 {[%emt 0:01:00]} 17. Nf2 {[%emt 0:01:05]} g5 {[%emt 0:03:35]} 18. Rfd1 {[%emt 0:01:05]} h5 {[%emt 0:01:05]} 19. Kf1 {[%emt 0:00:06]} g4 {[%emt 0:01:15]} 20. Ke1 {[%emt 0:00:14]} g3 {[%emt 0:00:01]} 21. hxg3 {[%emt 0:00:58]} fxg3 {[%emt 0:00:05]} 22. Nd3 {[%emt 0:00:11]} Bh6 {[%emt 0:00:05]} 23. Bc1 {[%emt 0:00:17]} Bg7 {[%emt 0:01:06]} 24. Be3 {[%emt 0:02:35]} h4 {[%emt 0:04:28]} 25. Bf1 {[%emt 0:00:10]} Nh5 {[%emt 0:02:36]} 26. Qe2 {[%emt 0:00:22]} Qf6 {[%emt 0:10:00]} 27. a4 {[%emt 0:00:59]} Bd7 {[%emt 0:10:36]} 28. Kd2 {[%emt 0:02:43]} Rf7 {[%emt 0:12:58]} 29. Kc2 {[%emt 0:00:12]} h3 {[%emt 0:01:03]} 30. gxh3 {[%emt 0:00:17]} Qxf3 {[%emt 0:00:04]} 31. Rd2 {[%emt 0:00:46]} Qxe4 {[%emt 0:01:25]} 32. Bg2 {[%emt 0:02:42]} Qxc4+ {[%emt 0:00:31]} 33. Kb2 {[%emt 0:00:54]} e4+ {[%emt 0:00:12]} 0-1

[Event "Sardinia World Festival-A 2024"]
[Site "Orosei"]
[Date "2024.04.30"]
[Round "4.47"]
[White "Botez, Alexandra"]
[Black "Nardoni, Matteo"]
[Result "1-0"]
[ECO "E81"]
[WhiteElo "1970"]
[BlackElo "1926"]
[Annotator "NA RC"]
[PlyCount "55"]
[EventDate "2024.04.26"]
[EventType "swiss"]
[EventCountry "ITA"]
[SourceTitle "playchess.com"]
[Source "ChessBase"]
[SourceQuality "1"]
[TimeControl "40/5400+30:1800+30"]

1. d4 {[%emt 0:00:03]} Nf6 {[%emt 0:00:05]} 2. c4 {[%emt 0:00:08]} g6 {[%emt 0:00:04]} 3. f3 {[%emt 0:00:10]} Bg7 {[%emt 0:00:05]} 4. e4 {[%emt 0:00:05]} d6 {[%emt 0:00:13]} 5. Nc3 {[%emt 0:00:12]} O-O {[%emt 0:00:14]} 6. Be3 {[%emt 0:00:05]} Nbd7 {[%emt 0:00:07]} 7. Qd2 {[%emt 0:01:04]} c5 {[%emt 0:00:10]} 8. Nge2 {[%emt 0:06:21]} Qa5 {[%emt 0:02:22]} 9. O-O-O {[%emt 0:04:57]} a6 {[%emt 0:02:19]} 10. dxc5 {[%emt 0:05:14]} Nxc5 {[%emt 0:01:13]} 11. Nd4 {[%emt 0:02:06]} Bd7 {[%emt 0:07:31]} 12. Kb1 {[%emt 0:00:48]} Rab8 {[%emt 0:06:12]} 13. Nc2 {[%emt 0:04:52]} Qc7 {[%emt 0:06:00]} 14. g4 {[%emt 0:04:36]} h5 {[%emt 0:02:27]} 15. e5 {[%emt 0:02:21]} dxe5 {[%emt 0:17:56]} 16. Bxc5 {[%emt 0:01:21]} Qxc5 {[%emt 0:00:57]} 17. g5 {[%emt 0:00:08]} Nh7 {[%emt 0:00:35]} 18. Qxd7 {[%emt 0:00:09]} Nxg5 {[%emt 0:00:42]} 19. Ne4 {[%emt 0:00:31]} Nxe4 {[%emt 0:04:08]} 20. fxe4 {[%emt 0:00:14]} e6 {[%emt 0:00:20]} 21. Be2 {[%emt 0:05:25]} Qf2 {[%emt 0:09:07]} 22. Qd2 {[%emt 0:03:27]} f5 {[%emt 0:08:13]} 23. Rhg1 {[%emt 0:10:19]} Rbd8 {[%emt 0:01:25]} 24. Qg5 {[%emt 0:01:30]} Rxd1+ {[%emt 0:08:42]} 25. Bxd1 {[%emt 0:00:08]} Qxh2 {[%emt 0:00:54]} 26. Qxg6 {[%emt 0:00:16]} Rf7 {[%emt 0:00:08]} 27. Bxh5 {[%emt 0:00:55]} Re7 {[%emt 0:00:52]} 28. Rd1 {[%emt 0:00:16]} 1-0